bitfinex/quotes_SOLUSD_20250522
["timestamp","ask_amount","ask_price","bid_price","bid_amount"]
[1747920677099,0.14216157,178.63,178.56,71.62]
[1747920677615,0.14216157,178.61,178.56,71.62]
[1747920678531,1.5264,178.6,178.56,71.62]
[1747920678724,1.5264,178.6,178.46,7.23819566]
[1747920678725,0.14216157,178.57,178.53,38.04]
[1747920678933,0.14216157,178.57,178.53,71.62]
[1747920679223,0.14216157,178.57,178.53,38.04]
[1747920679732,5.60035842,178.56,178.53,38.04]
[1747920679925,31.60035842,178.56,178.53,38.04]
[1747920681010,5.60035842,178.56,178.53,38.04]
[1747920681835,19.60085956,178.57,178.53,38.04]
[1747920683939,14.00081476,178.57,178.53,38.04]
[1747920684322,5.59941766,178.59,178.53,38.04]
[1747920684541,29.87388975,178.65,178.53,38.04]
[1747920684542,5.5969105,178.67,178.54,1.6664]
[1747920684838,19.58918676,178.67,178.55,18.64964886]
[1747920685046,19.58918676,178.67,178.56,33.58]
[1747920685614,5.5969105,178.67,178.57,19.20935762]
[1747920685811,13.9903822,178.7,178.59,6.2746]
[1747920686046,13.9903822,178.7,178.6,71.62]
[1747920689161,5.59565776,178.71,178.6,71.62]
[1747920689162,5.59565776,178.71,178.61,18.64964886]
[1747920689855,19.58480218,178.71,178.61,18.64964886]
[1747920690159,13.98914442,178.71,178.6,71.62]
[1747920690334,13.98914442,178.71,178.61,71.58]
[1747920692255,0.14216157,178.68,178.58,209.5]
[1747920692455,26.0,178.68,178.62,71.58]
[1747920694151,19.58918676,178.67,178.62,71.58]
[1747920695357,19.58918676,178.67,178.62,71.76]
[1747920696367,47.57373928,178.67,178.62,71.76]
[1747920697266,19.58918676,178.67,178.62,71.76]
[1747920700030,13.99227626,178.67,178.62,71.76]
[1747920702062,0.14216157,178.68,178.63,33.56]
[1747920702359,0.14216157,178.68,178.62,38.2]
[1747920702360,0.14216157,178.66,178.62,38.2]
[1747920702543,0.14216157,178.63,178.56,33.56]
[1747920702945,6.0461,178.65,178.56,33.56]
[1747920703147,6.0461,178.65,178.55,38.2]
[1747920703359,6.0461,178.65,178.57,33.56]
[1747920704155,19.59247648,178.64,178.57,33.56]
[1747920706070,13.99462606,178.64,178.57,33.56]
[1747920706970,5.59722377,178.66,178.57,39.15994435]
[1747920707864,13.99272284,178.67,178.57,33.56]
[1747920708365,5.59659726,178.68,178.58,20.25364886]
[1747920709448,19.58624524,178.7,178.58,25.85309846]
[1747920709647,19.58624524,178.7,178.58,20.25364886]
[1747920710161,47.56609974,178.7,178.58,1.604]
[1747920710368,47.56609974,178.7,178.59,71.76]
[1747920710369,0.14216157,178.69,178.59,71.76]
[1747920711458,19.58809043,178.68,178.59,71.76]
[1747920712679,5.59659726,178.68,178.59,77.35935023]
[1747920712851,5.59659726,178.68,178.6,18.64964886]
[1747920713550,5.5959709,178.7,178.6,24.24852245]
[1747920714879,19.58589815,178.7,178.6,24.24852245]
[1747920716180,5.5959709,178.7,178.6,24.24852245]
[1747920716559,5.5959709,178.7,178.6,5.59887359]
[1747920716888,19.58589815,178.7,178.61,18.64964886]
[1747920717354,5.5959709,178.7,178.61,18.64964886]
[1747920718262,19.58589815,178.7,178.61,18.64964886]
[1747920718954,19.58589815,178.7,178.61,24.2483041]
[1747920720184,5.5959709,178.7,178.61,24.2483041]
[1747920720857,5.5959709,178.7,178.61,5.59865524]
[1747920721077,5.5959709,178.7,178.61,18.64964886]
[1747920721464,19.58589815,178.7,178.6,24.24865368]
[1747920721985,19.58261063,178.73,178.61,39.15876166]
[1747920722188,19.7247722,178.73,178.61,39.15876166]
[1747920722391,19.7247722,178.73,178.61,33.56]
[1747920722559,0.14216157,178.71,178.62,38.2]
[1747920723068,26.0,178.72,178.62,38.2]
[1747920723475,26.0,178.72,178.63,71.76]
[1747920724174,19.58480218,178.71,178.63,71.76]
[1747920726187,13.98914442,178.71,178.63,71.76]
[1747920726765,13.98914442,178.71,178.64,71.74]
[1747920729978,5.59534467,178.72,178.64,71.74]
[1747920731084,5.59534467,178.72,178.64,77.33773189]
[1747920732295,5.59498227,178.74,178.66,1.6288]
[1747920732472,19.57863778,178.77,178.66,1.6288]
[1747920733165,19.57863778,178.77,178.67,18.64964886]
[1747920734361,5.59346683,178.78,178.67,24.24628898]
[1747920734584,5.59346683,178.78,178.68,15.85173552]
[1747920734883,5.59346683,178.78,178.7,18.64964886]
[1747920735068,5.59346683,178.78,178.71,38.18]
[1747920735673,13.97975731,178.83,178.72,18.64964886]
[1747920736073,13.97975731,178.83,178.74,18.64964886]
[1747920736266,5.59159024,178.84,178.74,18.64964886]
[1747920736267,5.59159024,178.84,178.74,21.41606404]
[1747920736471,43.95931745,178.9,178.74,21.41606404]
[1747920736472,6.2135,178.89,178.76,18.64964886]
[1747920736685,5.59033989,178.88,178.76,18.64964886]
[1747920737073,19.56618962,178.88,178.77,38.18]
[1747920737273,19.56618962,178.88,178.78,18.64964886]
[1747920737687,5.59002739,178.89,178.8,18.64964886]
[1747920737890,5.59002739,178.89,178.81,33.54]
[1747920738079,19.56509586,178.89,178.81,33.54]
[1747920738596,5.59002739,178.89,178.82,20.24094886]
[1747920739592,12.0,178.9,178.85,26.0]
[1747920739808,12.0,178.9,178.86,38.18]
[1747920740167,12.0,178.9,178.87,33.54]
[1747920740674,5.5884654,178.94,178.87,33.54]
[1747920740887,5.58752863,178.97,178.88,227.90964886]
[1747920741093,19.55635022,178.97,178.88,209.26]
[1747920741408,19.55635022,178.97,178.89,71.7]
[1747920741611,19.55635022,178.97,178.89,72.2]
[1747920741901,19.55307261,179.0,178.89,72.2]
[1747920742270,19.55307261,179.0,178.9,18.64964886]
[1747920742470,19.55307261,179.0,178.89,72.2]
[1747920743286,19.55307261,179.0,178.9,18.64964886]
[1747920743975,19.55307261,179.0,178.89,72.2]
[1747920746084,77.22562277,179.0,178.89,0.5]
[1747920746290,77.22562277,179.0,178.9,71.66]
[1747920746602,47.4860335,179.0,178.9,71.66]
[1747920746799,0.14216157,178.99,178.9,71.66]
[1747920746973,29.88175084,178.99,178.89,0.5]
[1747920747174,47.4860335,179.0,178.9,71.66]
[1747920748919,29.73958927,178.99,178.9,71.66]
[1747920749417,47.4860335,179.0,178.89,0.5]
[1747920749418,6.4285,178.92,178.89,0.5]
[1747920749584,6.4285,178.92,178.89,71.66]
[1747920749997,5.58940249,178.91,178.89,71.66]
[1747920750506,29.88175084,178.9,178.77,209.08]
[1747920750677,29.73958927,178.87,178.78,71.64]
[1747920751091,29.73958927,178.87,178.79,71.64]
[1747920751497,55.73958927,178.9,178.79,71.64]
[1747920751705,19.56290872,178.91,178.79,79.29941552]
[1747920752591,47.50992118,178.91,178.79,84.89246799]
[1747920753088,19.56290872,178.91,178.8,18.64964886]
[1747920753287,19.56290872,178.91,178.8,26.30906438]
[1747920754107,19.56290872,178.91,178.8,52.30906438]
[1747920754308,5.58940249,178.91,178.82,18.64964886]
[1747920754507,13.97153397,178.94,178.85,26.0]
[1747920754508,5.58877773,178.93,178.85,26.0]
[1747920754687,19.56072206,178.93,178.86,71.66]
[1747920755221,19.56072206,178.93,178.83,15.18551552]
[1747920755420,19.56072206,178.93,178.84,72.9]
[1747920756226,13.97194433,178.93,178.84,72.9]
[1747920757103,29.73958927,178.9,178.85,72.88]
[1747920757422,29.73958927,178.89,178.86,39.38]
[1747920757813,55.73958927,178.9,178.86,39.38]
[1747920758015,26.0,178.9,178.86,39.38]
[1747920758203,5.59002739,178.89,178.86,39.38]
[1747920761126,5.59002739,178.89,178.87,0.5]
[1747920762306,13.97388068,178.91,178.87,0.5]
[1747920765205,0.14216157,178.9,178.87,0.5]
[1747920765416,0.14216157,178.9,178.87,33.52]
[1747920765616,13.97388068,178.91,178.87,33.52]
[1747920766222,0.14216157,178.9,178.86,39.38]
[1747920766465,0.14216157,178.9,178.87,33.52]
[1747920766614,5.59002739,178.89,178.86,39.38]
[1747920766937,6.2221,178.88,178.86,39.38]
[1747920767339,7.781,178.88,178.84,33.52]
[1747920768441,26.0,178.87,178.84,33.52]
[1747920768918,5.590965,178.86,178.84,33.52]
[1747920769718,5.59033989,178.88,178.84,33.52]
[1747920770442,5.59033989,178.88,178.78,7.65941552]
[1747920770618,45.56618962,178.88,178.79,72.9]
[1747920770815,45.56618962,178.88,178.78,7.65941552]
[1747920771015,26.0,178.85,178.79,39.38]
[1747920771215,26.0,178.84,178.79,39.38]
[1747920771520,26.0,178.8,178.77,33.52]
[1747920771722,26.0,178.81,178.77,33.52]
[1747920772038,26.0,178.81,178.76,72.9]
[1747920772412,26.0,178.8,178.76,72.9]
[1747920772921,5.59315397,178.79,178.76,72.9]
[1747920774615,26.0,178.77,178.76,39.38]
[1747920774817,26.0,178.77,178.67,8.2121]
[1747920774818,5.59409263,178.76,178.75,33.52]
[1747920775038,19.57932422,178.76,178.75,33.52]
[1747920776143,5.59409263,178.76,178.75,33.52]
[1747920777241,5.59346683,178.78,178.75,33.52]
[1747920777449,5.59252838,178.81,178.75,33.52]
[1747920777932,5.59252838,178.81,178.75,39.11436642]
[1747920778128,5.59252838,178.81,178.75,33.52]
[1747920778326,5.59252838,178.81,178.73,39.4]
[1747920778528,5.59252838,178.81,178.76,33.52]
[1747920779345,39.98132095,178.81,178.77,72.92]
[1747920779552,39.98132095,178.81,178.78,39.4]
[1747920779923,39.98132095,178.81,178.71,11.87279224]
[1747920780125,39.98132095,178.81,178.72,72.92]
[1747920781337,26.0,178.78,178.72,72.92]
[1747920781646,26.0,178.78,178.73,72.92]
[1747920781942,26.0,178.8,178.73,72.92]
[1747920782250,26.0,178.78,178.73,72.92]
[1747920782631,26.0,178.78,178.74,72.92]
[1747920782846,26.0,178.78,178.75,33.52]
[1747920783135,26.0,178.72,178.69,39.4]
[1747920783449,26.0,178.67,178.66,8.00013296]
[1747920783623,1.6528,178.67,178.66,8.00013296]
[1747920783819,37.86808927,178.67,178.66,8.00013296]
[1747920784124,26.0,178.65,178.64,39.4]
[1747920784335,26.0,178.63,178.6,39.4]
[1747920784522,55.73958927,178.63,178.6,39.4]
[1747920785138,0.14216157,178.66,178.6,39.4]
[1747920785358,5.5981638,178.63,178.61,33.52]
[1747920785827,26.0,178.62,178.61,33.52]
[1747920786247,26.0,178.62,178.59,33.52]
[1747920787241,5.5981638,178.63,178.59,33.52]
[1747920787444,45.59028321,178.66,178.59,33.52]
[1747920787651,19.59028321,178.66,178.59,33.52]
[1747920787858,45.59028321,178.66,178.59,33.52]
[1747920788057,0.14216157,178.65,178.59,33.52]
[1747920788271,0.14216157,178.65,178.54,209.2]
[1747920788427,26.0,178.62,178.55,73.44]
[1747920789364,19.59028321,178.66,178.55,73.44]
[1747920789657,19.59028321,178.66,178.55,79.04051295]
[1747920790123,19.59028321,178.66,178.54,211.93178721]
[1747920790323,19.59028321,178.66,178.55,73.44]
[1747920790763,5.59722377,178.66,178.58,26.0]
[1747920791056,5.59596985,178.71,178.62,26.0]
[1747920791242,5.59596985,178.71,178.63,73.44]
[1747920791453,13.98762803,178.73,178.63,73.44]
[1747920792020,13.98762803,178.73,178.64,73.44]
[1747920792459,0.14216157,178.72,178.65,73.44]
[1747920792763,0.14216157,178.72,178.66,39.9]
[1747920793345,0.14216157,178.7,178.66,39.9]
[1747920793542,29.73958927,178.69,178.57,7.7741]
[1747920793866,29.73958927,178.66,178.58,73.44]
[1747920794038,29.73958927,178.66,178.59,33.54]
[1747920794461,31.40855084,178.67,178.59,33.54]
[1747920794760,0.14216157,178.65,178.59,33.54]
[1747920795145,0.14216157,178.65,178.54,211.93178721]
[1747920795467,19.59247648,178.64,178.55,39.92]
[1747920795662,49.33206575,178.64,178.56,33.56]
[1747920795868,49.33206575,178.64,178.57,73.48]
[1747920796039,49.33206575,178.64,178.57,39.92]
[1747920796241,49.33206575,178.64,178.58,33.56]
[1747920796441,19.59247648,178.64,178.58,33.56]
[1747920796967,29.88175084,178.63,178.54,209.2]
[1747920797180,55.73958927,178.55,178.51,33.56]
[1747920797470,35.34088877,178.53,178.5,33.56]
[1747920797757,19.60454825,178.53,178.49,39.92]
[1747920798060,19.60454825,178.53,178.49,73.48]
[1747920798761,29.73958927,178.51,178.49,39.92]
[1747920798957,29.88175084,178.52,178.49,73.48]
[1747920799460,14.00324875,178.53,178.49,73.48]
[1747920800953,5.60067208,178.55,178.49,73.48]
[1747920801645,5.59879066,178.61,178.52,26.0]
[1747920801842,5.59879066,178.61,178.53,33.56]
[1747920802368,19.59576731,178.61,178.53,33.56]
[1747920803575,5.59879066,178.61,178.53,33.56]
[1747920803866,5.59879066,178.61,178.53,39.16126081]
[1747920804164,5.59879066,178.61,178.53,33.56]
[1747920804367,5.59879066,178.61,178.56,26.0]
[1747920804547,5.59879066,178.61,178.57,73.5]
[1747920805378,19.5935733,178.63,178.57,73.5]
[1747920806053,19.5935733,178.63,178.58,33.56]
[1747920806670,19.5935733,178.63,178.56,39.94]
[1747920806671,44.81102499,178.61,178.56,39.94]
[1747920806844,44.81102499,178.59,178.53,33.56]
[1747920807044,47.58439231,178.63,178.53,33.56]
[1747920807354,5.59879066,178.61,178.53,33.56]
[1747920807941,5.59879066,178.61,178.53,39.16122635]
[1747920808364,5.59879066,178.61,178.53,33.56]
[1747920808759,5.59879066,178.61,178.53,39.1612921]
[1747920808966,5.59879066,178.61,178.53,33.56]
[1747920809471,13.99510999,178.64,178.53,33.56]
[1747920811175,0.14216157,178.63,178.53,33.56]
[1747920811465,0.14216157,178.61,178.52,39.94]
[1747920811676,44.95318656,178.61,178.53,33.56]
[1747920812061,6.6541,178.58,178.43,6.6225]
[1747920812375,44.95318656,178.55,178.45,73.48]
[1747920812554,44.81102499,178.52,178.46,73.48]
[1747920812750,44.81102499,178.52,178.46,39.92]
[1747920812967,44.81102499,178.51,178.46,73.48]
[1747920813268,0.14216157,178.51,178.44,33.56]
[1747920813471,5.60255476,178.49,178.44,33.56]
[1747920814073,19.60235228,178.55,178.44,33.56]
[1747920814255,64.41337727,178.55,178.44,33.56]
[1747920814457,44.95318656,178.54,178.44,33.56]
[1747920814781,0.14216157,178.54,178.44,33.56]
[1747920815354,44.95318656,178.54,178.44,33.56]
[1747920815571,19.60454825,178.53,178.44,33.56]
[1747920815775,0.14216157,178.5,178.43,39.94]
[1747920815980,44.95318656,178.5,178.44,33.56]
[1747920816281,0.14216157,178.48,178.35,209.46]
[1747920816579,0.14216157,178.48,178.39,26.0]
[1747920816949,0.14216157,178.5,178.39,26.0]
[1747920817380,19.60894167,178.49,178.39,26.0]
[1747920817560,19.60894167,178.49,178.41,26.0]
[1747920817881,19.60894167,178.49,178.42,33.58]
[1747920818065,19.60894167,178.49,178.43,40.36]
[1747920818579,5.60192706,178.51,178.44,26.0]
[1747920818887,5.60192706,178.51,178.46,26.0]
[1747920819181,5.60192706,178.51,178.47,33.58]
[1747920819475,64.4177697,178.51,178.47,33.58]
[1747920819675,44.95318656,178.5,178.47,33.58]
[1747920819976,44.81102499,178.49,178.47,33.58]
[1747920820484,44.95318656,178.48,178.46,40.36]
[1747920821073,44.81102499,178.47,178.38,26.0]
[1747920821276,0.14216157,178.46,178.39,73.94]
[1747920821466,19.61333706,178.45,178.39,73.94]
[1747920823372,5.60381059,178.45,178.39,73.94]
[1747920823557,19.61113911,178.47,178.39,73.94]
[1747920823897,44.95318656,178.46,178.35,209.46]
[1747920824183,44.81102499,178.41,178.36,40.36]
[1747920824484,44.81102499,178.41,178.37,33.58]
[1747920824689,44.81102499,178.42,178.37,33.58]
[1747920825062,0.14216157,178.41,178.37,33.58]
[1747920825272,0.14216157,178.4,178.37,33.58]
[1747920825465,5.60569538,178.39,178.36,40.36]
[1747920825674,5.60569538,178.39,178.36,73.96]
[1747920826198,0.14216157,178.38,178.32,26.0]
[1747920826358,0.14216157,178.38,178.28,18.64964886]
[1747920826359,0.14216157,178.38,178.33,40.38]
[1747920826792,0.14216157,178.38,178.34,33.6]
[1747920827360,0.14216157,178.38,178.33,40.38]
[1747920827575,5.60632393,178.37,178.35,33.6]
[1747920828157,0.14216157,178.36,178.35,33.6]
[1747920828377,0.14216157,178.36,178.33,40.38]
[1747920828766,0.14216157,178.36,178.32,33.6]
[1747920829581,5.60632393,178.37,178.35,26.0]
[1747920829784,5.60632393,178.37,178.36,33.6]
[1747920830610,0.14216157,178.36,178.29,26.0]
[1747920830906,0.14216157,178.36,178.31,40.38]
[1747920831079,19.62213376,178.37,178.31,40.38]
[1747920831283,0.14216157,178.36,178.31,40.38]
[1747920831509,19.62433417,178.35,178.31,40.38]
[1747920831705,0.14216157,178.34,178.31,40.38]
[1747920833509,5.60695262,178.35,178.31,40.38]
[1747920835586,19.76429533,178.37,178.31,40.38]
[1747920836715,49.71575251,178.37,178.31,40.38]
[1747920837788,0.14216157,178.35,178.31,40.38]
[1747920837989,1.68006157,178.35,178.31,40.38]
[1747920839685,0.14216157,178.33,178.31,40.38]
[1747920840487,5.60726701,178.34,178.31,40.38]
[1747920841723,19.62496848,178.35,178.31,40.38]
[1747920841934,0.14216157,178.34,178.31,40.38]
[1747920842096,0.14216157,178.34,178.26,276.0]
[1747920842295,0.14216157,178.31,178.26,40.4]
[1747920842609,0.14216157,178.31,178.22,33.62]
[1747920842610,30.09361875,178.28,178.22,33.62]
[1747920842814,30.09361875,178.28,178.22,59.62]
[1747920842996,30.09361875,178.28,178.22,33.62]
[1747920843309,0.14216157,178.26,178.22,59.62]
[1747920843720,0.14216157,178.26,178.21,40.4]
[1747920843721,19.63534361,178.25,178.21,40.4]
[1747920844092,0.14216157,178.24,178.21,40.4]
[1747920844313,19.63534361,178.25,178.21,40.4]
[1747920844708,0.14216157,178.24,178.21,40.4]
[1747920845194,30.09361875,178.24,178.21,40.4]
[1747920845395,29.95145718,178.23,178.15,40.4]
[1747920845599,30.09361875,178.21,178.16,33.62]
[1747920845798,19.64085296,178.2,178.16,33.62]
[1747920847611,0.14216157,178.19,178.15,40.4]
[1747920847938,30.09361875,178.17,178.1,40.64]
[1747920848104,0.14216157,178.15,178.11,33.62]
[1747920848297,30.09361875,178.15,178.11,33.62]
[1747920848496,30.09361875,178.15,178.05,66.64]
[1747920848497,29.95145718,178.13,178.05,66.64]
[1747920848693,0.14216157,178.12,178.08,33.62]
[1747920848913,30.09361875,178.12,178.08,33.62]
[1747920849117,30.09361875,178.09,178.02,209.8]
[1747920849295,30.09361875,178.06,177.99,33.62]
[1747920849496,0.14216157,178.03,177.99,33.62]
[1747920849703,0.14216157,178.03,177.97,40.66]
[1747920850026,19.66071227,178.02,177.97,40.66]
[1747920850224,19.66071227,178.02,177.92,48.66013296]
[1747920850401,29.95145718,177.96,177.92,8.00013296]
[1747920850727,29.95145718,177.95,177.92,8.00013296]
[1747920850900,29.95145718,177.94,177.92,8.00013296]
[1747920851235,0.14216157,177.95,177.92,8.00013296]
[1747920851409,30.09361875,177.96,177.92,8.00013296]
[1747920851619,0.14216157,177.96,177.92,8.00013296]
[1747920852001,0.14216157,177.96,177.89,33.64]
[1747920852002,5.61955605,177.95,177.89,33.64]
[1747920852203,45.14315842,177.93,177.86,40.66]
[1747920852527,45.14315842,177.89,177.84,42.5]
[1747920852825,45.14315842,177.85,177.78,42.5]
[1747920853012,26.14216157,177.89,177.78,76.16]
[1747920853320,33.66,177.92,177.76,33.66]
[1747920853321,45.14315842,177.8,177.76,33.66]
[1747920853537,45.14315842,177.8,177.75,33.66]
[1747920853900,5.62429696,177.8,177.75,33.66]
[1747920854319,45.14315842,177.79,177.75,33.66]
[1747920854519,5.62366437,177.82,177.75,33.66]
[1747920854830,5.62338825,177.83,177.78,26.0]
[1747920855028,5.62145145,177.89,177.82,26.0]
[1747920855201,5.62145145,177.89,177.83,33.66]
[1747920856114,0.14216157,177.91,177.83,33.66]
[1747920856506,45.14315842,177.9,177.82,42.5]
[1747920856701,0.14216157,177.88,177.82,42.5]
[1747920857030,19.67242284,177.92,177.82,68.5]
[1747920857327,5.62050359,177.92,177.85,26.0]
[1747920857499,19.66844618,177.95,177.86,33.68]
[1747920857819,0.14216157,177.94,177.86,33.68]
[1747920858029,0.14216157,177.92,177.86,33.68]
[1747920858412,45.14315842,177.87,177.79,243.8]
[1747920858614,0.14216157,177.88,177.79,33.68]
[1747920858925,45.14315842,177.83,177.77,78.22]
[1747920859826,0.14216157,177.85,177.77,78.22]
[1747920859998,19.67839874,177.86,177.77,104.22]
[1747920860195,19.67839874,177.86,177.8,26.0]
[1747920860809,19.67839874,177.86,177.81,33.68]
[1747920861015,5.62239964,177.86,177.81,33.68]
[1747920862125,19.67517003,177.89,177.81,33.68]
[1747920862523,0.14216157,177.88,177.81,33.68]
[1747920862708,45.14315842,177.87,177.81,33.7]
[1747920863100,45.28531999,177.88,177.81,33.7]
[1747920863407,0.14216157,177.88,177.81,33.7]
[1747920863734,45.28531999,177.88,177.81,33.7]
[1747920863923,45.14315842,177.84,177.78,26.0]
[1747920864117,5.62366437,177.82,177.79,33.7]
[1747920865303,19.68282531,177.82,177.77,44.54]
[1747920865520,19.68282531,177.82,177.77,78.24]
[1747920865721,45.28531999,177.81,177.77,44.54]
[1747920865944,45.28531999,177.79,177.71,44.56]
[1747920866233,64.33247417,177.82,177.7,33.7]
[1747920866234,19.68946894,177.76,177.7,33.7]
[1747920866639,64.83262736,177.76,177.7,33.7]
[1747920866929,0.14216157,177.75,177.7,33.7]
[1747920867108,19.68946894,177.76,177.7,33.7]
[1747920867704,5.62556255,177.76,177.7,33.7]
[1747920868121,50.76872097,177.76,177.7,33.7]
[1747920868338,45.14315842,177.74,177.68,254.74]
[1747920868553,45.14315842,177.74,177.68,288.44]
[1747920868752,0.14216157,177.75,177.68,44.56]
[1747920869059,45.14315842,177.71,177.68,44.56]
[1747920869232,18.79181043,177.75,177.68,44.56]
[1747920869233,45.14315842,177.72,177.68,44.56]
[1747920869434,0.14216157,177.72,177.68,44.56]
[1747920869629,45.28531999,177.72,177.68,44.56]
[1747920870054,45.28531999,177.72,177.63,70.56]
[1747920870055,45.14315842,177.72,177.63,70.56]
[1747920870353,5.62714534,177.71,177.64,18.64964886]
[1747920870663,5.62587904,177.75,177.67,26.0]
[1747920871150,5.62587904,177.75,177.63,50.33184011]
[1747920871151,45.28531999,177.74,177.66,26.0]
[1747920871355,45.14315842,177.73,177.68,33.72]
[1747920871551,45.14315842,177.72,177.68,33.72]
[1747920871752,0.14216157,177.73,177.63,44.56]
[1747920871929,45.14315842,177.69,177.63,44.56]
[1747920872260,64.8414925,177.68,177.63,44.56]
[1747920872559,45.14315842,177.64,177.57,244.04]
[1747920873155,45.14315842,177.63,177.57,33.72]
[1747920873320,45.14315842,177.63,177.55,44.58]
[1747920873321,45.14315842,177.58,177.55,44.58]
[1747920873526,45.14315842,177.56,177.49,33.72]
[1747920873727,45.14315842,177.55,177.49,33.72]
[1747920874156,45.14315842,177.53,177.49,33.72]
[1747920874340,50.77632651,177.52,177.47,44.58]
[1747920874539,45.14315842,177.51,177.47,44.58]
[1747920874845,64.85924674,177.52,177.47,44.58]
[1747920875157,19.71608832,177.52,177.47,44.58]
[1747920875364,64.85924674,177.52,177.47,44.58]
[1747920875966,19.71608832,177.52,177.47,44.58]
[1747920876141,5.63316809,177.52,177.47,44.58]
[1747920876341,5.63285078,177.53,177.47,44.58]
[1747920877539,50.7760092,177.53,177.47,78.32]
[1747920877746,45.28531999,177.52,177.47,44.58]
[1747920878563,19.71719902,177.51,177.47,44.58]
[1747920879347,0.14216157,177.5,177.47,44.58]
[1747920879544,45.28531999,177.5,177.36,5.6382022]
[1747920879742,19.71719902,177.51,177.37,80.18]
[1747920879743,45.14315842,177.49,177.37,80.18]
[1747920879946,0.14216157,177.5,177.38,18.64964886]
[1747920880170,0.14216157,177.5,177.41,26.0]
[1747920880368,19.71942081,177.49,177.42,33.76]
[1747920881278,45.14315842,177.46,177.37,46.42]
[1747920881447,0.14216157,177.44,177.37,46.42]
[1747920881646,45.14315842,177.41,177.37,46.42]
[1747920881946,18.79181043,177.44,177.37,46.42]
[1747920882146,18.79181043,177.44,177.27,47.972]
[1747920882147,45.14315842,177.39,177.27,47.972]
[1747920882355,45.28531999,177.39,177.29,33.76]
[1747920882564,0.14216157,177.36,177.27,46.44]
[1747920882762,45.14315842,177.37,177.28,26.0]
[1747920882969,19.72942501,177.4,177.3,26.0]
[1747920883295,5.63697857,177.4,177.32,18.64964886]
[1747920883457,5.63697857,177.4,177.36,26.0]
[1747920883658,5.63697857,177.4,177.37,33.76]
[1747920884198,19.72576933,177.44,177.37,33.76]
[1747920884558,5.63570784,177.44,177.4,26.0]
[1747920884798,5.63570784,177.44,177.41,33.76]
[1747920884958,5.63570784,177.44,177.42,33.76]
[1747920885589,19.72497745,177.44,177.39,59.78]
[1747920885884,0.14216157,177.43,177.37,26.0]
[1747920886279,5.63634314,177.42,177.37,26.0]
[1747920886659,28.31756146,177.46,177.39,26.0]
[1747920886660,5.63507269,177.46,177.39,26.0]
[1747920886860,19.72275442,177.46,177.4,33.78]
[1747920887066,0.14216157,177.45,177.4,33.78]
[1747920887392,45.14315842,177.44,177.39,26.0]
[1747920887611,0.14216157,177.42,177.37,33.78]
[1747920887762,45.28531999,177.45,177.37,59.78]
[1747920888069,19.72275442,177.46,177.37,59.78]
[1747920888389,14.08768173,177.46,177.4,26.0]
[1747920888568,5.63443768,177.48,177.41,33.78]
[1747920890275,5.63380281,177.5,177.41,33.78]
[1747920890492,5.63380281,177.5,177.43,26.0]
[1747920890668,5.63380281,177.5,177.45,26.0]
[1747920890869,5.63380281,177.5,177.36,6.1544]
[1747920890870,45.28531999,177.49,177.36,6.1544]
[1747920891073,45.14315842,177.45,177.36,48.36]
[1747920891270,45.14315842,177.45,177.37,33.78]
[1747920891474,45.14315842,177.48,177.37,33.78]
[1747920891681,0.14216157,177.49,177.37,33.78]
[1747920891889,119.03048235,177.5,177.4,18.64964886]
[1747920891890,19.71830985,177.5,177.4,18.64964886]
[1747920892076,0.14216157,177.49,177.37,33.78]
[1747920892285,45.28531999,177.49,177.4,26.0]
[1747920892477,19.72053188,177.48,177.4,26.0]